Cogmind - Beta 14 @@@ ROGUE MODE // 2024.09.08 @ 22:31:05 Player: star Result: Destroyed by B-75 Beast with Heavy Plasma Cannon Performance ------------- Evolutions (4) 2000 Regions Visited (6) 1200 Robots Destroyed (29) 145 Value Destroyed (1219) 1219 Prototype IDs (17) 340 Alien Tech Used (0) 0 Bonus (500) 500 TOTAL SCORE: 5404 Bonus ------- Entered Garrisons 200 Registered with UFD 300 Cogmind --------- Core Integrity 0/850 Matter 270/300 Energy 65/100 System Corruption 3% Temperature Cool (12) Movement Flying (109) Ox1 Location -6/Garrison Parts ------- > --- POWER (2) -------- (None) > --- PROPULSION (6) --- VTOL Module VTOL Module VTOL Module > --- UTILITY (5) ------ Large Storage Unit Hacking Suite > --- WEAPON (2) ------- Companion Sword > --- INVENTORY (15) --- Energy Well (350) High-capacity Matter Pod (200) Gravity Neutralizer Advanced Sensor Array Hardened Heavy Armor Plating Improved Medium Armor Plating Focal Shield Improved Hardlight Generator Improved System Shield Relay Coupler [Grunt] (27) DRS Beacon (Ready) DRS Beacon (Expended) Peak State ------------ > --- POWER ------------ Light Angular Momentum Engine Light Angular Momentum Engine > --- PROPULSION ------- Airjet Airjet Airjet Gravmag System Improved Gravmag System Makeshift Hover Unit > --- UTILITY ---------- Scrap Suit Large Storage Unit Gravity Neutralizer Hacking Suite > --- WEAPON ----------- CPS Tube Companion Sword > --- INVENTORY -------- Improved Ion Engine Airjet Makeshift Hover Unit Energy Well High-capacity Matter Pod Advanced Sensor Array Hardened Heavy Armor Plating Improved Medium Armor Plating Improved Hardlight Generator Slug Cannon DRS Beacon DRS Beacon [Rating: 65] Favorites ----------- Power Improved Ion Engine Engine Improved Ion Engine Propulsion Subdweller Monowheel Wheel Subdweller Monowheel Hover Unit Makeshift Hover Unit Flight Unit VTOL Module Utility Shield Generator Device Shield Generator Storage Large Storage Unit Hackware Hacking Suite Protection Scrap Shield Weapon Companion Sword Energy Gun Medium Laser Ballistic Gun Subdweller Machine Gun Ballistic Cannon Slug Cannon Launcher Subdweller Shrapnel Launcher Special Weapon CPS Tube Slashing Weapon Companion Sword Build | -11 -10 -10 -9 -9 -6 -6 ------- Run | Yrd Mat Sub Rec Scr Fac Gar Slots Evolved 8 | . . . . . 8 . Power 1 | . . . . . 1 . Propulsion 4 | . . . . . 4 . Utility 3 | . . . . . 3 . Weapon . | . . . . . . . Parts Attached 51 | 5 . 16 2 6 16 6 Power 6 | 1 . 1 . 1 2 1 Engine 6 | 1 . 1 . 1 2 1 Core . | . . . . . . . Reactor . | . . . . . . . Propulsion 20 | 2 . 3 1 2 7 5 Treads . | . . . . . . . Leg . | . . . . . . . Wheel 6 | 2 . 3 1 . . . Hover 11 | . . . . 2 7 2 Flight 3 | . . . . . . 3 Utility 10 | . . 1 1 2 6 . Device 6 | . . . 1 1 4 . Storage 2 | . . . . 1 1 . Processor . | . . . . . . . Hackware 1 | . . . . . 1 . Protection 1 | . . 1 . . . . Artifact . | . . . . . . . Weapon 15 | 2 . 11 . 1 1 . Energy Gun 1 | 1 . . . . . . Energy Cannon . | . . . . . . . Ballistic Gun 6 | 1 . 5 . . . . Ballistic Cannon 2 | . . 2 . . . . Launcher 3 | . . 3 . . . . Special Weapon 2 | . . 1 . . 1 . Impact Weapon . | . . . . . . . Slashing Weapon 1 | . . . . 1 . . Piercing Weapon . | . . . . . . . Special Melee Weapon . | . . . . . . . Unidentified Prototypes 2 | . . . . 1 1 . Parts Lost 20 | . . 4 . . 1 15 Power 4 | . . 1 . . . 3 Propulsion 9 | . . . . . 1 8 Utility 3 | . . 1 . . . 2 Weapon 4 | . . 2 . . . 2 Highest Loss Streak 6 | . . 3 . . 1 6 To Critical Strikes 1 | . . . . . . 1 Average Slot Usage (%) 72 | . 71 74 77 69 82 68 Engine 11 | . 14 7 14 14 10 6 Wheel 16 | . 28 27 22 15 . . Hover 11 | . . . . 12 39 25 Device 9 | . . . 11 14 11 10 Storage 3 | . . . . 4 7 6 Protection 1 | . . 10 . . . . Energy Gun 1 | . 14 1 . . . . Ballistic Gun 6 | . 14 16 14 . . 3 Ballistic Cannon 1 | . . 8 . . . . Launcher 2 | . . 1 14 . . . Slashing Weapon 4 | . . . . 7 6 6 Peak Build Rating 65 | 5 5 15 12 29 65 63 Average Rating 20 | 4 5 11 10 17 54 46 On Entrance 17 | . 5 5 8 12 29 63 Naked Turns . | . . . . . . . Heaviest Build 53 | 8 8 32 17 39 53 50 Greatest Support 58 | 26 26 40 20 24 58 55 Greatest Overweight (x) 7 | . . 1 5 5 1 7 Average Overweight (x) . | . . . 1 1 . . Largest Inventory Capacity 15 | 5 5 5 5 15 15 15 Average Capacity 8 | 5 5 5 5 8 15 15 Most Carried 15 | 2 3 5 5 15 15 15 Average Carried 7 | . 2 4 4 7 12 13 Final Capacity 15 | 5 5 5 5 15 15 15 Final Carried 15 | 2 3 5 5 15 15 13 Class Distribution -------------------- 76% | Mutant 15% | Scavenger-Mutant 8% | Subdweller-Mutant Dominant Class ---------------- Mutant | -10/Materials Subdweller-Mutant | -10/Subcaves Scavenger-Mutant | -9/Recycling Mutant | -9/Scraptown Mutant | -6/Factory Mutant | -6/Garrison Resources | -11 -10 -10 -9 -9 -6 -6 ----------- Run | Yrd Mat Sub Rec Scr Fac Gar Matter Collected 1393 | 224 . 317 510 92 181 69 Remotely . | . . . . . . . Salvage Created 877 | . . 176 . . 369 332 Parts 63 | . . 25 . . 18 20 Haulers Intercepted . | . . . . . . . Recyclers Shooed . | . . . . . . . Parts Field Recycled . | . . . . . . . Retrieved Matter . | . . . . . . . Parts Self-Destructed 10 | . . 10 . . . . Prevented . | . . . . . . . Kills | -11 -10 -10 -9 -9 -6 -6 ------- Run | Yrd Mat Sub Rec Scr Fac Gar Combat Hostiles Destroyed 27 | . . 11 . . 6 10 Melee 16 | . . . . . 6 10 Guns 4 | . . 4 . . . . Cannons 2 | . . 2 . . . . AOE 5 | . . 5 . . . . Classes Destroyed 8 | . . 3 . . 4 1 Tunneler 1 | . . . . . 1 . Operator 1 | . . . . . 1 . Swarmer 12 | . . 4 . . . 8 Grunt 4 | . . . . . 4 . Hunter 2 | . . . . . . 2 Programmer 2 | . . . . . 2 . Artisan 1 | . . 1 . . . . Subdweller 7 | . . 7 . . . . Best Kill Streak 4 | . . 4 . . 4 3 Combat Bots Only 4 | . . 4 . . 3 3 Max Kills in Single Turn 4 | . . 4 . . 1 1 Gunslinging . | . . . . . . . Exploded 3 | . . 3 . . . . Melee 1 | . . . . . 1 1 Uniques/NPCs Destroyed . | . . . . . . . Combat | -11 -10 -10 -9 -9 -6 -6 -------- Run | Yrd Mat Sub Rec Scr Fac Gar Hostile Shots Fired 285 | . . 78 . . 42 165 Missed 93 | . . 24 . . 20 49 Damage Taken 3321 | . . 1113 . . 277 1931 Core 1113 | . . 233 . . 79 801 Absorbed by Shields . | . . . . . . . Regen/Repaired (Parts) 26 | . . . . . 6 20 Core Remaining (%) 53 | 100 . . . 6 . . Volleys Fired 59 | . . 59 . . . . Largest 2 | . . 2 . . . . Hottest 130 | . . 130 . . . . Shots Fired 116 | . . 116 . . . . Gun 84 | . . 84 . . . . Cannon 22 | . . 22 . . . . Launcher 9 | . . 9 . . . . Special 1 | . . 1 . . . . Kinetic 96 | . . 96 . . . . Thermal 20 | . . 20 . . . . Explosive . | . . . . . . . Electromagnetic . | . . . . . . . Robot Hit Streak 10 | . . 10 . . . . Robot Miss Streak 3 | . . 3 . . . . Penetration Max . | . . . . . . . Secondary Targets . | . . . . . . . Shots Hit Robots 112 | . . 72 . . 17 23 Core Hits 37 | . . 16 . . 8 13 Critical Kills . | . . . . . . . Critical Parts Destroyed 1 | . . 1 . . . . Critical Strikes 4 | . . 2 . . 2 . Destroy 2 | . . 2 . . . . Melee Attacks 90 | . . . . . 21 69 Impact . | . . . . . . . Slashing 90 | . . . . . 21 69 Piercing . | . . . . . . . Sneak Attacks 5 | . . . . . 3 2 Combat Hostiles 3 | . . . . . 1 2 Follow-up Attacks 1 | . . . . . . 1 Damage Inflicted 3043 | . . 1235 . . 813 995 Guns 447 | . . 447 . . . . Cannons 310 | . . 310 . . . . Explosions 459 | . . 459 . . . . Melee 1808 | . . . . . 813 995 Ramming 7 | . . 7 . . . . Kinetic 1216 | . . 1216 . . . . Thermal 12 | . . 12 . . . . Explosive . | . . . . . . . Electromagnetic . | . . . . . . . Impact . | . . . . . . . Slashing 1808 | . . . . . 813 995 Piercing . | . . . . . . . Highest Corruption 3 | . . 1 1 1 3 3 Average Corruption 1 | . . 1 1 1 2 3 Corruption Purged . | . . . . . . . Corruption Blocked . | . . . . . . . Effects 41 | . . 7 6 15 1 12 Message Errors 7 | . . . 3 2 . 2 Matter Fused 16 | . . 2 1 9 . 4 Heat Flow Errors 4 | . . 1 . 2 . 1 Energy Discharges 1 | . . . . . . 1 Parts Rejected 1 | . . 1 . . . . Parts Fused 1 | . . . 1 . . . Data Loss (minor) 6 | . . 1 1 1 1 2 Data Loss (major) 2 | . . . . 1 . 1 Misfires 1 | . . 1 . . . . Alerts 2 | . . 1 . . . 1 Overload Shots . | . . . . . . . Overflow Damage 171 | . . 12 . . 120 39 Projectiles 12 | . . 12 . . . . Explosions . | . . . . . . . Melee 159 | . . . . . 120 39 Knockbacks 2 | . . 2 . . . . Impact . | . . . . . . . Kinetic 2 | . . 2 . . . . Secondary . | . . . . . . . Self-Inflicted Damage 113 | . . 113 . . . . Shots 3 | . . 3 . . . . Rammed . | . . . . . . . Targets Rammed . | . . . . . . . Kicked . | . . . . . . . Crushed . | . . . . . . . Highest Temperature 204 | . . 97 . 112 11 204 Average Temperature 70 | . . 72 . 59 7 104 Received Heat Transfer 279 | . . 72 . . 108 99 Siege Activations . | . . . . . . . Robots Corrupted . | . . . . . . . Combat Hostiles . | . . . . . . . Parts Fried . | . . . . . . . Impact Corruptions . | . . . . . . . Robots Melted . | . . . . . . . Combat Hostiles . | . . . . . . . Parts Melted 1 | . . . . . 1 . Heat Transferred 80 | . . 80 . . . . Parts Sabotaged . | . . . . . . . Parts Stolen . | . . . . . . . Parts Stripped . | . . . . . . . Power Chain Reactions . | . . . . . . . Alert | -11 -10 -10 -9 -9 -6 -6 ------- Run | Yrd Mat Sub Rec Scr Fac Gar Peak Influence 278 | . . . 33 . 196 278 Initial 56 | . . . 14 . . 56 Average 61 | . . . 14 . 63 173 Maximum Alert Level 1 | . . . . . . 1 Low Security (%) 90 | 100 100 . 100 . 100 60 Level 1 9 | . . . . . . 39 Level 2 . | . . . . . . . Level 3 . | . . . . . . . Level 4 . | . . . . . . . Level 5 . | . . . . . . . High Security . | . . . . . . . Max Security . | . . . . . . . Squads Dispatched 3 | . . . . . 3 . Investigation 1 | . . . . . 1 . Extermination 1 | . . . . . 1 . Reinforcement 1 | . . . . . 1 . Assault . | . . . . . . . Garrison . | . . . . . . . Intercept . | . . . . . . . Searches Triggered . | . . . . . . . Construction Impeded . | . . . . . . . Haulers Reinforced . | . . . . . . . Active Scanning Responses . | . . . . . . . Cargo Convoy Interrupts . | . . . . . . . Stealth | -11 -10 -10 -9 -9 -6 -6 --------- Run | Yrd Mat Sub Rec Scr Fac Gar Distress Signals 1 | . . . . . 1 . Communications Jammed . | . . . . . . . Distress Signals . | . . . . . . . Times Spotted 43 | . . 17 . . 10 16 Peak Tracking Total 6 | . . 6 . . 3 6 Tactical Retreats 5 | . . 2 . . 1 2 Traps | -11 -10 -10 -9 -9 -6 -6 ------- Run | Yrd Mat Sub Rec Scr Fac Gar Traps Triggered . | . . . . . . . Indirectly . | . . . . . . . Trap Hack Attempts . | . . . . . . . Triggered . | . . . . . . . Disarmed . | . . . . . . . Reprogrammed . | . . . . . . . Reused . | . . . . . . . Traps Extracted . | . . . . . . . Installed 1 | . . . . 1 . . Triggered . | . . . . . . . Machines | -11 -10 -10 -9 -9 -6 -6 ---------- Run | Yrd Mat Sub Rec Scr Fac Gar Machines Disabled 2 | . . 1 . . . 1 Max in Single Turn 1 | . . 1 . . . 1 Garrison Relay 1 | . . . . . . 1 Machines Repaired . | . . . . . . . Machines Dismantled . | . . . . . . . Machines Sabotaged . | . . . . . . . Overloaded Fab Kills . | . . . . . . . Hacking | -11 -10 -10 -9 -9 -6 -6 --------- Run | Yrd Mat Sub Rec Scr Fac Gar Machines Accessed 20 | . . 1 7 8 4 . Terminals 8 | . . . 6 . 2 . Fabricators . | . . . . . . . Repair Stations . | . . . . . . . Recycling Units 1 | . . . 1 . . . Scanalyzers 1 | . . . . . 1 . Garrison Access 1 | . . . . . 1 . Total Hacks 78 | . . 3 22 46 7 . Successful 65 | . . 3 12 46 4 . Failed 13 | . . . 10 . 3 . Catastrophic 1 | . . . . . 1 . Database Lockouts . | . . . . . . . Manual 19 | . . . 17 . 2 . Terminals 22 | . . . 20 . 2 . Fabricators . | . . . . . . . Repair Stations . | . . . . . . . Recycling Units 2 | . . . 2 . . . Scanalyzers 3 | . . . . . 3 . Garrison Access 2 | . . . . . 2 . Terminal Hacks 57 | . . 3 8 46 . . Record 42 | . . 3 . 39 . . Robot Schematic 1 | . . . 1 . . . Robot Analysis 5 | . . . . 5 . . Prototype ID Bank 6 | . . . 6 . . . Open Door 1 | . . . . 1 . . Hauler Manifests 1 | . . . 1 . . . Derelict Proto ID Bank 1 | . . . . 1 . . Fabricator Hacks . | . . . . . . . Repair Station Hacks . | . . . . . . . Recycling Unit Hacks 2 | . . . 2 . . . Report Inventory 1 | . . . 1 . . . Retrieve Components 1 | . . . 1 . . . Scanalyzer 2 | . . . . . 2 . Insert Component 1 | . . . . . 1 . Analyze 1 | . . . . . 1 . Garrison Access Hacks 1 | . . . . . 1 . Unlock Access 1 | . . . . . 1 . Unauthorized Hacks 3 | . . . 2 . 1 . Terminals 3 | . . . 2 . 1 . Botnet 2 | . . . 1 . 1 . Skim 1 | . . . 1 . . . Fabricators . | . . . . . . . Repair Stations . | . . . . . . . Recycling Units . | . . . . . . . Scanalyzers . | . . . . . . . Garrison Access . | . . . . . . . Data Cores Recovered . | . . . . . . . Used . | . . . . . . . Hacking Detections 11 | . . . 7 . 4 . Full Trace Events 5 | . . . 4 . 1 . Feedback Events 1 | . . . . . 1 . Corruption 1 | . . . . . 1 . Feedback Blocked . | . . . . . . . Robot Schematics Acquired 1 | . . . 1 . . . Robots Built . | . . . . . . . Authchips . | . . . . . . . Time . | . . . . . . . Total Robot Build Rating . | . . . . . . . Part Schematics Acquired 1 | . . . . . 1 . Parts Built . | . . . . . . . Authchips . | . . . . . . . Time . | . . . . . . . Total Part Build Rating . | . . . . . . . Parts Repaired . | . . . . . . . Time . | . . . . . . . Parts Recycled . | . . . . . . . Recycled Matter . | . . . . . . . Retrieved Matter . | . . . . . . . Retrieved Components 2 | . . . 2 . . . Parts Scanalyzed 1 | . . . . . 1 . Part Schematics Acquired 1 | . . . . . 1 . Parts Damaged . | . . . . . . . Bothacking | -11 -10 -10 -9 -9 -6 -6 ------------ Run | Yrd Mat Sub Rec Scr Fac Gar Used RIF Installer . | . . . . . . . Robots Hacked . | . . . . . . . Non-combat . | . . . . . . . Combat . | . . . . . . . Robot Hacks Applied . | . . . . . . . Relay Couplers Released 4 | . . . . . . 4 Machine Destruction 4 | . . . . . . 4 Fabnet Peak Effective % . | . . . . . . . Robots Rewired . | . . . . . . . Allies Hacked . | . . . . . . . Hacks Repelled . | . . . . . . . Allies | -11 -10 -10 -9 -9 -6 -6 -------- Run | Yrd Mat Sub Rec Scr Fac Gar Total Allies . | . . . . . . . Largest Group . | . . . . . . . Highest-Rated Group . | . . . . . . . Highest-Rated Ally . | . . . . . . . Total Orders . | . . . . . . . Ally Attacks . | . . . . . . . Total Damage . | . . . . . . . Kills . | . . . . . . . Allies Corrupted . | . . . . . . . Allies Melted . | . . . . . . . Intel | -11 -10 -10 -9 -9 -6 -6 ------- Run | Yrd Mat Sub Rec Scr Fac Gar Robot Analysis Total 5 | . . . . 5 . . Derelict Logs Recovered 2 | . . . . 2 . . Drone Launches . | . . . . . . . Drone Recoveries . | . . . . . . . Exploration | -11 -10 -10 -9 -9 -6 -6 ------------- Run | Yrd Mat Sub Rec Scr Fac Gar Turns Passed 5436 | 51 338 880 881 2214 495 577 Spaces Moved 3929 | 47 22 580 533 1735 568 444 Core 996 | 1 . . 153 841 . 1 Treads . | . . . . . . . Legs . | . . . . . . . Wheels 1028 | 46 22 580 380 . . . Hover 1902 | . . . . 894 568 440 Flight 3 | . . . . . . 3 Fastest Speed 41 | 50 90 90 110 66 41 41 Average Speed 108 | 88 90 105 164 126 41 64 Slowest Speed 435 | 90 90 110 300 300 106 435 Overloaded Moves . | . . . . . . . Propulsion Burnouts . | . . . . . . . Robots Hopped . | . . . . . . . Cave-ins Triggered . | . . . . . . . Exploration Rate (%) 35 | 4 8 27 95 82 10 19 Regions Visited 6 Branch Regions 3 Pre-discovered Areas . | . . . . . . . Known Exits Taken 1 | . . . . . 1 . Unknown Exits Taken 5 | 1 1 1 1 1 . . Scrap Searched 8 | . . 5 . 3 . . Spaces Dug 51 | . . 29 . . . 22 Terrain Destroyed 126 | . . 104 . . . 22 Melee 22 | . . . . . . 22 Projectile 9 | . . 9 . . . . AOE 95 | . . 95 . . . . Terrain Rammed 1 | . . 1 . . . . Walls Destroyed . | . . . . . . . Machines Disabled . | . . . . . . . Actions | -11 -10 -10 -9 -9 -6 -6 --------- Run | Yrd Mat Sub Rec Scr Fac Gar Total 4859 | 53 340 739 539 1761 792 635 Wait 677 | . 318 63 2 3 176 115 Move 3924 | 46 21 579 532 1734 568 444 Hop . | . . . . . . . Pick Up 31 | 2 1 6 2 11 8 1 Fast Attach 18 | 5 . 5 1 3 1 3 Attach 13 | . . . 1 . 9 3 Detach 1 | . . . . . 1 . Swap 20 | . . 11 . 3 6 . Drop 20 | . . 10 1 6 2 1 Fire 59 | . . 59 . . . . Melee 89 | . . . . . 21 68 Ram 1 | . . 1 . . . . Kick . | . . . . . . . Crush . | . . . . . . . Escape Stasis . | . . . . . . . Rewire . | . . . . . . . Trap 1 | . . . . 1 . . Miscellaneous 5 | . . 5 . . . . Route ------- -11/Scrapyard -10/Materials -10/Subcaves (discovered 2 exits: [*Mat] / *Rec) -9/Recycling (discovered 2 exits: [*Fac] / *Scr) -9/Scraptown (discovered 2 exits: *Fac x2) -6/Factory -6/Garrison History --------- Turn | Location | Event 21 | -11/Scrapyard | Discovered new exit (range 15) 52 | -11/Scrapyard | Entered Materials 300 | -10/Materials | Build established: Mutant 368 | -10/Materials | Discovered new exit (range 8) 390 | -10/Materials | Entered Subcaves 400 | -10/Subcaves | Discovered new exit (range 3) 465 | -10/Subcaves | Core integrity fell below 50% 509 | -10/Subcaves | Lost 3 parts (1p2w) 605 | -10/Subcaves | Visited Clippyterm 608 | -10/Subcaves | Learned Research machine intel 954 | -10/Subcaves | Shifting Twisted Machinery released Shrapnel Trap 987 | -10/Subcaves | Build established: Subdweller-Mutant 1050 | -10/Subcaves | Shifting Twisted Machinery released Battle Rifle 1128 | -10/Subcaves | Discovered new exit (range 11) 1245 | -10/Subcaves | Core integrity fell below 20% 1270 | -10/Subcaves | Entered Recycling 1573 | -9/Recycling | Build established: Mutant 1589 | -9/Recycling | Scanned before Scraplab entrance 1649 | -9/Recycling | Discovered new exit (range 8) 1941 | -9/Recycling | Build established: Scavenger-Mutant 2115 | -9/Recycling | Entered Scraplab 2145 | -9/Recycling | Discovered new exit (range 3) 2151 | -9/Recycling | Entered Scraptown 2332 | -9/Scraptown | Scanned Subdweller tech in exchange for log data 2335 | -9/Scraptown | Learned Factory garrison access intel 2336 | -9/Scraptown | Learned Factory trap positions 2351 | -9/Scraptown | Discovered new exit (range 5) 2457 | -9/Scraptown | Build established: Mutant 2487 | -9/Scraptown | Visited Cave Peace 2541 | -9/Scraptown | Visited Cyclists 2628 | -9/Scraptown | Visited Symbiants 2666 | -9/Scraptown | Visited Fellowship of the Rings 2699 | -9/Scraptown | Visited UFD Registry 2699 | -9/Scraptown | Registered with UFD as "Quantumchaser" 2717 | -9/Scraptown | Heard Great Nut preacher, LISTEN AND RECITE! 2780 | -9/Scraptown | Entered Cyclist Reading Room 2849 | -9/Scraptown | Visited Red Mages 3057 | -9/Scraptown | Visited TADAMA 3125 | -9/Scraptown | Visited Abandonware Association 3156 | -9/Scraptown | Visited Sword Containment 3353 | -9/Scraptown | Visited Supply Room 3488 | -9/Scraptown | Visited Analyses Database 3524 | -9/Scraptown | Visited Junk Repository 3601 | -9/Scraptown | Visited DA-N13 Charitable Foundation 3604 | -9/Scraptown | Found DCF Scrap (29 items) 3806 | -9/Scraptown | Visited Science Guys 3862 | -9/Scraptown | Warned about trapping Scraptown 3919 | -9/Scraptown | Visited Derelict Rescue Squad 3930 | -9/Scraptown | Found DRS Beacon 3937 | -9/Scraptown | Found DRS Beacon 3974 | -9/Scraptown | Visited Observation Area 4085 | -9/Scraptown | Found Scrap Suit 4144 | -9/Scraptown | Discovered new exit (range 3) 4362 | -9/Scraptown | System corruption cleaned by C-Scrubber 4365 | -9/Scraptown | Entered Factory 4365 | -6/Factory | Evolved 8 slots: Power x1, Propulsion x4, Utility x3 4366 | -6/Factory | Loaded intel: 75 trap records 4367 | -6/Factory | Loaded intel: 4 garrison access locations 4779 | -6/Factory | Spotted B-75 Beast 4860 | -6/Factory | Identified exit to Garrison 4860 | -6/Factory | Entered Garrison 4966 | -6/Garrison | Triggered checkpoint 5052 | -6/Garrison | Lost 5 parts (2p3n) 5117 | -6/Garrison | Garrison Relay disabled 5155 | -6/Garrison | Spotted B-75 Beast 5407 | -6/Garrison | Lost 6 parts (1p2n2u1w) 5417 | -6/Garrison | Core integrity fell below 50% 5424 | -6/Garrison | Core integrity fell below 20% 5437 | -6/Garrison | Destroyed by B-75 Beast with Heavy Plasma Cannon Last Messages --------------- 05345_ System corrupted: Component data lost. 05346_ Slug penetrates Wall. 05346_ Penetrated by Slug. 05346_ Imp. Ion Engine destroyed. 05349_ Slug penetrates Wall. 05349_ Critical hit (Destroy). 05349_ Scrap Suit destroyed. 05352_ H-66 Slayer destroyed. 05376_ Airjet destroyed. 05378_ S-27 Virus destroyed. 05386_ System corrupted: Substantial component data lost. 05402_ System corrupted: Matter fused (-10). 05402_ Acquired 10 matter. 05407_ Imp. Gravmag System destroyed. 05408_ Mak. Hover Unit destroyed. 05409_ S-27 Virus destroyed. 05419_ System corrupted: Energy discharge (-32). 05420_ Knocked back. 05423_ S-27 Virus destroyed. 05425_ Acquired VTOL Module. Map ----- +----------------------------------------------------+ | ?# #??????????????????????????????????????????? | | ?# ###??????????????????????????????????????????? | | ?# ####?????????????????????????????????????????? | | ?# #""#####################?????????????????????? | | ?# "#?????????????????????? | | ?# "#?????????????????????? | | ?#+"######## ######### "#?????????????????????? | | ?# #??????#=![#???????# "#?????????????????????? | | ?# #??????##=##???????# "#?????????????????????? | | ?# #???????#%##########[ "#?????????????????????? | | ?# #???????#* ! ![%=!=%* ;#?????????????????????? | | ?# #???????############ ;#?????????????????????? | | ?# #??????????????????# ;#?????????????????????? | | ?# #??????????????????# ;#?????????????????????? | | ?# #??????????????????# ;#?????????????????????? | | ?# #??????????????????# ;#?????????????????????? | | ?# #??????????????????# ;#?????????????????????? | | ?# #??????????????????# ;#?????????????????????? | | ?# #??????????????????# ;#?????????????????????? | | ?# #??????????????????# ;#?????????????????????? | | ?# #??????????????????# ;#?????????????????????? | | ?# #??????????????????# ;#?????????????????????? | | ?# #??????????????????# ;#?????????????????????? | | ?# #??????????????????#% ;#??????#####""""## #?? | | ?# #################### %######## #? | | ?# ;%@%[ BBg ? | | ?# % ;% %sBB g ? | | ?################################# ## #?????? | | ?????????????????????????????????? #???????????? | | ??????????????????????????????????? ??????????? | | ??????????????????????????????????? ????????? | | ???????????????????????????????????? ???????? | | ???????????????????????????????????? ?????? | | ?????????????????????????????????????## ##????? | | ??????????????????????????????????????? #?????? | | ???????????????????????????????????????? ????? | | ????????????????????????????????????????? ????? | | ?????????????????????????????????????????? ????? | | ??????????????????????????????????????????"??????? | | ?????????????????????????????????????????????????? | | ?????????????????????????????????????????????????? | | ?????????????????????????????????????????????????? | | ?????????????????????????????????????????????????? | | ?????????????????????????????????????????????????? | | ?????????????????????????????????????????????????? | | ?????????????????????????????????????????????????? | | ?????????????????????????????????????????????????? | | ?????????????????????????????????????????????????? | | ?????????????????????????????????????????????????? | | ?????????????????????????????????????????????????? | +----------------------------------------------------+ Best States ------------- Heat Dissipation 37 Energy Generation 31 Energy Capacity 550 Matter Stores 300 Matter Capacity 300 Sight Range 16 Terrain Scan Density 10 Armor Coverage 800 Evasion (%) 64 Offensive Hacking 10 Item Schematics ----------------- Slug Cannon | -6/Factory | Scanalyzed Robot Schematics ------------------ S-10 Pest | -9/Recycling | Hacked Fabricated ------------ Nothing Alien Tech Used ----------------- None Achievements -------------- Armchair Analyst Challenges ------------ None Game ------ Seed MediumNullArchive Manual? 0 Play Time 00:58:23 Cumulative 72.5 hours Start 2024.09.08 @ 14:00:14 End 2024.09.08 @ 22:31:05 Sessions 2 Manual Loads 0 Difficulty Rogue Special Mode None Game No. 132 Rogue 132 Adventurer 0 Explorer 0 Win Type - Total 0 Types 0/0/0/0/0/0/0/0/0 Lore% 40 Gallery% 46 Achievement% 37 Wizard Run 0 Options --------- Layout 0 ASCII 0 Keyboard 0 Movement Numpad Keybinds 0 Fullscreen 2 Font 18/SmallcapsGlow Map View 76x50 Zoom Use 0% Tactical HUD 1 Map Filters NONE Filters NONE Steam 1 RUN: 76663dec-5b2f-475b-b16d-f36a53da4946